[Event "European Online Club-ch-F 2021"]
[Site "Online"]
[Date "2021.03.27"]
[Round "4.17"]
[White "Kovalenko, Igor"]
[Black "Kovalev, Vladislav"]
[Result "1/2-1/2"]
[ECO "D55"]
[WhiteElo "2643"]
[BlackElo "2648"]
[Annotator "ChessBase"]
[PlyCount "198"]
[EventDate "2021.03.27"]
[EventType "team-tourn"]
[EventCountry "NET"]
[SourceTitle "playchess.com"]
[Source "ChessBase"]
[SourceQuality "1"]
[TimeControl "900+5"]

1. d4 {[%emt 0:00:00]} Nf6 {[%emt 0:00:02]} 2. Nf3 {[%emt 0:00:04]} e6 {[%emt 0:00:05]} 3. c4 {[%emt 0:00:03]} d5 {[%emt 0:00:02]} 4. Nc3 {[%emt 0:00:02]} Be7 {[%emt 0:00:16]} 5. Bg5 {[%emt 0:00:06]} h6 {[%emt 0:00:13]} 6. Bxf6 {[%emt 0:00:02]} Bxf6 {[%emt 0:00:00]} 7. e3 {[%emt 0:00:01]} O-O {[%emt 0:00:04]} 8. Rc1 {[%emt 0:00:02]} c6 {[%emt 0:00:09]} 9. h3 {[%emt 0:00:03]} Nd7 {[%emt 0:00:06]} 10. a3 {[%emt 0:00:02]} a6 {[%emt 0:01:07]} 11. cxd5 {[%emt 0:00:39]} exd5 {[%emt 0:00:09]} 12. Bd3 {[%emt 0:00:03]} Re8 {[%emt 0:00:18]} 13. O-O {[%emt 0:00:02]} Nf8 {[%emt 0:00:37]} 14. b4 {[%emt 0:00:21]} Qe7 {[%emt 0:00:24]} 15. Qb3 {[%emt 0:00:16]} Ne6 {[%emt 0:00:02]} 16. Rfe1 {[%emt 0:03:55]} Ng5 {[%emt 0:00:08]} 17. Qd1 {[%emt 0:00:05]} a5 {[%emt 0:00:43]} 18. Nxg5 {[%emt 0:00:19]} hxg5 {[%emt 0:00:03]} 19. bxa5 {[%emt 0:00:05]} Qxa3 {[%emt 0:00:19]} 20. Qh5 {[%emt 0:00:10]} Be6 {[%emt 0:01:51]} 21. Qh7+ {[%emt 0:00:36]} Kf8 {[%emt 0:00:02]} 22. e4 {[%emt 0:00:10]} dxe4 {[%emt 0:00:35]} 23. Nxe4 {[%emt 0:02:33]} Qxd3 {[%emt 0:01:21]} 24. Nxf6 {[%emt 0:00:16]} Qxh7 {[%emt 0:00:00]} 25. Nxh7+ {[%emt 0:00:03]} Ke7 {[%emt 0:00:53]} 26. d5 {[%emt 0:02:48]} cxd5 {[%emt 0:00:11]} 27. Rc7+ {[%emt 0:00:02]} Kd6 {[%emt 0:00:30]} 28. Rxb7 {[%emt 0:00:02]} g4 {[%emt 0:03:59]} 29. hxg4 {[%emt 0:00:50]} Rxa5 {[%emt 0:00:02]} 30. Ng5 {[%emt 0:00:11]} Ra6 {[%emt 0:00:30]} 31. f3 {[%emt 0:00:54]} Re7 {[%emt 0:00:33]} 32. Rb2 {[%emt 0:01:41]} Rea7 {[%emt 0:00:25]} 33. Kh2 {[%emt 0:00:10]} Ke7 {[%emt 0:00:23]} 34. Ree2 {[%emt 0:00:24]} Kf6 {[%emt 0:00:07]} 35. Nh3 {[%emt 0:00:02]} g5 {[%emt 0:00:07]} 36. Nf2 {[%emt 0:00:10]} Ra3 {[%emt 0:00:12]} 37. Nh1 {[%emt 0:00:14]} Rd7 {[%emt 0:00:42]} 38. Ng3 {[%emt 0:00:04]} Ra8 {[%emt 0:00:08]} 39. Rb6 {[%emt 0:00:04]} Rad8 {[%emt 0:00:07]} 40. Kg1 {[%emt 0:00:12]} Rd6 {[%emt 0:00:06]} 41. Rb5 {[%emt 0:00:08]} Kg6 {[%emt 0:00:01]} 42. Rd2 {[%emt 0:00:07]} R6d7 {[%emt 0:00:02]} 43. Rd4 {[%emt 0:00:05]} Rc8 {[%emt 0:00:05]} 44. Rb2 {[%emt 0:00:06]} Rc4 {[%emt 0:00:03]} 45. Rd3 {[%emt 0:00:03]} Rdc7 {[%emt 0:00:06]} 46. Ne2 {[%emt 0:00:11]} Rc2 {[%emt 0:00:05]} 47. Rxc2 {[%emt 0:00:02]} Rxc2 {[%emt 0:00:00]} 48. Nd4 {[%emt 0:00:03]} Rc4 {[%emt 0:00:03]} 49. Kf2 {[%emt 0:00:03]} Kf6 {[%emt 0:00:01]} 50. Ke3 {[%emt 0:00:03]} Ke5 {[%emt 0:00:07]} 51. g3 {[%emt 0:00:02]} Kf6 {[%emt 0:00:06]} 52. Ra3 {[%emt 0:00:04]} Rc8 {[%emt 0:00:11]} 53. Ra6 {[%emt 0:00:05]} Rc3+ {[%emt 0:00:02]} 54. Kd2 {[%emt 0:00:02]} Rc4 {[%emt 0:00:06]} 55. Ke3 {[%emt 0:00:02]} Rc3+ {[%emt 0:00:01]} 56. Kd2 {[%emt 0:00:03]} Rc4 {[%emt 0:00:01]} 57. Kd3 {[%emt 0:00:12]} Ke5 {[%emt 0:00:16]} 58. Ne2 {[%emt 0:00:03]} Rb4 {[%emt 0:00:21]} 59. f4+ {[%emt 0:00:07]} gxf4 {[%emt 0:00:00]} 60. gxf4+ {[%emt 0:00:02]} Rxf4 {[%emt 0:00:00]} 61. Nxf4 {[%emt 0:00:02]} Kxf4 {[%emt 0:00:00]} 62. Kd4 {[%emt 0:00:04]} Kxg4 {[%emt 0:00:03]} 63. Ke5 {[%emt 0:00:01]} Kg5 {[%emt 0:00:20]} 64. Ra1 {[%emt 0:00:03]} Bg4 {[%emt 0:00:08]} 65. Kxd5 {[%emt 0:00:06]} f6 {[%emt 0:00:19]} 66. Rf1 {[%emt 0:00:20]} Bh3 {[%emt 0:00:10]} 67. Rf2 {[%emt 0:00:02]} Bg4 {[%emt 0:00:02]} 68. Ke4 {[%emt 0:00:02]} Bh3 {[%emt 0:00:11]} 69. Rf4 {[%emt 0:00:05]} Bg2+ {[%emt 0:00:04]} 70. Ke3 {[%emt 0:00:02]} Bh3 {[%emt 0:00:01]} 71. Rb4 {[%emt 0:00:05]} Be6 {[%emt 0:00:12]} 72. Kf3 {[%emt 0:00:14]} Bd5+ {[%emt 0:00:04]} 73. Kg3 {[%emt 0:00:02]} Be6 {[%emt 0:00:00]} 74. Rb5+ {[%emt 0:00:04]} Bf5 {[%emt 0:00:01]} 75. Ra5 {[%emt 0:00:02]} Kg6 {[%emt 0:00:01]} 76. Kf4 {[%emt 0:00:02]} Bc2 {[%emt 0:00:01]} 77. Ra2 {[%emt 0:00:03]} Bd3 {[%emt 0:00:01]} 78. Rd2 {[%emt 0:00:03]} Bb1 {[%emt 0:00:02]} 79. Rg2+ {[%emt 0:00:03]} Kf7 {[%emt 0:00:02]} 80. Ke3 {[%emt 0:00:02]} Bf5 {[%emt 0:00:04]} 81. Kd4 {[%emt 0:00:02]} Bh7 {[%emt 0:00:07]} 82. Kd5 {[%emt 0:00:02]} Bf5 {[%emt 0:00:03]} 83. Kd6 {[%emt 0:00:02]} Be4 {[%emt 0:00:04]} 84. Rf2 {[%emt 0:00:02]} Bh7 {[%emt 0:00:04]} 85. Rf3 {[%emt 0:00:06]} Be4 {[%emt 0:00:02]} 86. Re3 {[%emt 0:00:02]} Bf5 {[%emt 0:00:02]} 87. Rc3 {[%emt 0:00:06]} Bg4 {[%emt 0:00:14]} 88. Rc4 {[%emt 0:00:05]} Bf5 {[%emt 0:00:03]} 89. Rb4 {[%emt 0:00:08]} Bh3 {[%emt 0:00:24]} 90. Ra4 {[%emt 0:00:38]} Bf5 {[%emt 0:00:04]} 91. Ra7+ {[%emt 0:00:03]} Kf8 {[%emt 0:00:03]} 92. Kd5 {[%emt 0:00:02]} Bg4 {[%emt 0:00:05]} 93. Ke4 {[%emt 0:00:05]} Be6 {[%emt 0:00:02]} 94. Kf4 {[%emt 0:00:04]} Kg8 {[%emt 0:00:25]} 95. Kg3 {[%emt 0:00:10]} Bf7 {[%emt 0:00:04]} 96. Kg4 {[%emt 0:00:05]} Bg6 {[%emt 0:00:02]} 97. Rc7 {[%emt 0:00:03]} Kf8 {[%emt 0:00:01]} 98. Kf4 {[%emt 0:00:03]} Kg8 {[%emt 0:00:03]} 99. Ra7 {[%emt 0:00:06]} Kf8 {[%emt 0:00:01]} 1/2-1/2

[Event "European Online Club-ch-F 2021"]
[Site "Online"]
[Date "2021.03.27"]
[Round "4.18"]
[White "Azarov, Sergei"]
[Black "Moiseenko, Alexander"]
[Result "1-0"]
[ECO "B33"]
[WhiteElo "2604"]
[BlackElo "2620"]
[Annotator "ChessBase"]
[PlyCount "85"]
[EventDate "2021.03.27"]
[EventType "team-tourn"]
[EventCountry "NET"]
[SourceTitle "playchess.com"]
[Source "ChessBase"]
[SourceQuality "1"]
[TimeControl "900+5"]

1. e4 {[%emt 0:00:00]} c5 {[%emt 0:00:04]} 2. Nf3 {[%emt 0:00:02]} Nc6 {[%emt 0:00:02]} 3. d4 {[%emt 0:00:02]} cxd4 {[%emt 0:00:01]} 4. Nxd4 {[%emt 0:00:02]} Nf6 {[%emt 0:00:01]} 5. Nc3 {[%emt 0:00:01]} e5 {[%emt 0:00:02]} 6. Ndb5 {[%emt 0:00:01]} d6 {[%emt 0:00:01]} 7. Nd5 {[%emt 0:00:01]} Nxd5 {[%emt 0:00:03]} 8. exd5 {[%emt 0:00:03]} Nb8 {[%emt 0:00:02]} 9. Qf3 {[%emt 0:00:05]} a6 {[%emt 0:02:33]} 10. Qa3 {[%emt 0:00:09]} Be7 {[%emt 0:00:10]} 11. Bg5 {[%emt 0:00:15]} f6 {[%emt 0:00:48]} 12. Be3 {[%emt 0:00:04]} O-O {[%emt 0:00:10]} 13. O-O-O {[%emt 0:00:04]} Bf5 {[%emt 0:00:45]} 14. Be2 {[%emt 0:02:59]} Nd7 {[%emt 0:01:41]} 15. Nc3 {[%emt 0:00:07]} Bg6 {[%emt 0:00:35]} 16. g4 {[%emt 0:00:24]} f5 {[%emt 0:00:09]} 17. gxf5 {[%emt 0:00:10]} Bxf5 {[%emt 0:00:03]} 18. Qb4 {[%emt 0:01:02]} b5 {[%emt 0:00:14]} 19. Bd3 {[%emt 0:00:08]} Bxd3 {[%emt 0:00:17]} 20. Rxd3 {[%emt 0:00:03]} Nc5 {[%emt 0:00:13]} 21. Bxc5 {[%emt 0:00:49]} dxc5 {[%emt 0:00:04]} 22. Qg4 {[%emt 0:00:02]} c4 {[%emt 0:02:14]} 23. Rg3 {[%emt 0:00:40]} Rf7 {[%emt 0:00:11]} 24. Rd1 {[%emt 0:00:09]} Bh4 {[%emt 0:00:39]} 25. Rg2 {[%emt 0:01:01]} b4 {[%emt 0:02:01]} 26. Ne4 {[%emt 0:00:17]} c3 {[%emt 0:00:01]} 27. Kb1 {[%emt 0:00:27]} Raa7 {[%emt 0:00:19]} 28. d6 {[%emt 0:00:52]} Kh8 {[%emt 0:00:53]} 29. Qe6 {[%emt 0:00:26]} h6 {[%emt 0:01:05]} 30. Qxe5 {[%emt 0:02:02]} cxb2 {[%emt 0:00:39]} 31. f4 {[%emt 0:00:07]} a5 {[%emt 0:00:15]} 32. Rg6 {[%emt 0:01:51]} Kh7 {[%emt 0:00:11]} 33. Rdg1 {[%emt 0:00:05]} a4 {[%emt 0:00:12]} 34. Qxb2 {[%emt 0:01:04]} b3 {[%emt 0:00:30]} 35. cxb3 {[%emt 0:00:10]} axb3 {[%emt 0:00:01]} 36. axb3 {[%emt 0:00:03]} Qa8 {[%emt 0:00:04]} 37. Qd4 {[%emt 0:00:37]} Ra1+ {[%emt 0:00:13]} 38. Kc2 {[%emt 0:01:07]} Ra2+ {[%emt 0:00:22]} 39. Kd3 {[%emt 0:00:09]} Qa6+ {[%emt 0:00:05]} 40. Qc4 {[%emt 0:00:04]} Qa7 {[%emt 0:00:05]} 41. Nc5 {[%emt 0:00:21]} Bf6 {[%emt 0:00:11]} 42. Qe4 {[%emt 0:00:06]} Kg8 {[%emt 0:00:07]} 43. Rxh6 {[%emt 0:00:09]} 1-0

[Event "European Online Club-ch-F 2021"]
[Site "Online"]
[Date "2021.03.27"]
[Round "4.19"]
[White "Smirin, Ilia"]
[Black "Zhigalko, Andrey"]
[Result "1-0"]
[ECO "C70"]
[WhiteElo "2614"]
[BlackElo "2517"]
[Annotator "ChessBase"]
[PlyCount "91"]
[EventDate "2021.03.27"]
[EventType "team-tourn"]
[EventCountry "NET"]
[SourceTitle "playchess.com"]
[Source "ChessBase"]
[SourceQuality "1"]
[TimeControl "900+5"]

1. e4 {[%emt 0:00:00]} e5 {[%emt 0:00:03]} 2. Nf3 {[%emt 0:00:05]} Nc6 {[%emt 0:00:01]} 3. Bb5 {[%emt 0:00:03]} a6 {[%emt 0:00:02]} 4. Ba4 {[%emt 0:00:02]} b5 {[%emt 0:00:02]} 5. Bb3 {[%emt 0:00:03]} g6 {[%emt 0:00:01]} 6. c3 {[%emt 0:00:12]} Bg7 {[%emt 0:00:03]} 7. d4 {[%emt 0:00:06]} exd4 {[%emt 0:00:00]} 8. cxd4 {[%emt 0:00:04]} Nge7 {[%emt 0:00:06]} 9. d5 {[%emt 0:00:13]} Na5 {[%emt 0:00:04]} 10. Bd2 {[%emt 0:00:02]} Nxb3 {[%emt 0:00:08]} 11. Qxb3 {[%emt 0:00:04]} c5 {[%emt 0:00:39]} 12. Bc3 {[%emt 0:00:55]} f6 {[%emt 0:00:06]} 13. a3 {[%emt 0:00:07]} d6 {[%emt 0:00:08]} 14. O-O {[%emt 0:00:08]} O-O {[%emt 0:00:11]} 15. Nbd2 {[%emt 0:00:36]} g5 {[%emt 0:00:19]} 16. Qc2 {[%emt 0:00:19]} Ng6 {[%emt 0:01:00]} 17. b4 {[%emt 0:00:24]} g4 {[%emt 0:02:47]} 18. Ne1 {[%emt 0:00:05]} cxb4 {[%emt 0:01:29]} 19. axb4 {[%emt 0:00:05]} Ra7 {[%emt 0:02:16]} 20. Bd4 {[%emt 0:01:50]} Rc7 {[%emt 0:00:32]} 21. Qb2 {[%emt 0:00:10]} f5 {[%emt 0:00:06]} 22. Bxg7 {[%emt 0:00:30]} Rxg7 {[%emt 0:00:00]} 23. Nc2 {[%emt 0:00:14]} Nf4 {[%emt 0:00:58]} 24. Ra3 {[%emt 0:01:46]} Bb7 {[%emt 0:00:40]} 25. Ne3 {[%emt 0:00:36]} fxe4 {[%emt 0:00:24]} 26. Nxe4 {[%emt 0:00:03]} Qe7 {[%emt 0:01:05]} 27. Ng3 {[%emt 0:00:29]} Rg5 {[%emt 0:00:11]} 28. Rc1 {[%emt 0:00:41]} Bxd5 {[%emt 0:00:44]} 29. Nxd5 {[%emt 0:00:47]} Rxd5 {[%emt 0:00:03]} 30. Rxa6 {[%emt 0:00:28]} Nd3 {[%emt 0:01:04]} 31. Qb3 {[%emt 0:00:18]} Qf7 {[%emt 0:00:05]} 32. Rf1 {[%emt 0:00:09]} Rd4 {[%emt 0:00:56]} 33. Qc3 {[%emt 0:01:07]} Qc4 {[%emt 0:00:10]} 34. Qa1 {[%emt 0:01:09]} Qxb4 {[%emt 0:00:22]} 35. Ra8 {[%emt 0:00:14]} Rdf4 {[%emt 0:00:31]} 36. Nh5 {[%emt 0:00:16]} R4f7 {[%emt 0:00:01]} 37. Rxf8+ {[%emt 0:00:25]} Kxf8 {[%emt 0:00:00]} 38. Qh8+ {[%emt 0:00:34]} Ke7 {[%emt 0:00:02]} 39. Ng7 {[%emt 0:00:01]} Ne5 {[%emt 0:00:17]} 40. Qxh7 {[%emt 0:01:14]} Qf4 {[%emt 0:00:17]} 41. Qh8 {[%emt 0:00:20]} Qg5 {[%emt 0:00:16]} 42. Qe8+ {[%emt 0:00:46]} Kf6 {[%emt 0:00:02]} 43. Ne6 {[%emt 0:00:05]} Qg6 {[%emt 0:00:12]} 44. Nd8 {[%emt 0:00:06]} Re7 {[%emt 0:00:11]} 45. Qf8+ {[%emt 0:00:04]} Kg5 {[%emt 0:00:03]} 46. Qxe7+ {[%emt 0:00:14]} 1-0

[Event "European Online Club-ch-F 2021"]
[Site "Online"]
[Date "2021.03.27"]
[Round "4.20"]
[White "Kazakouski, Valery"]
[Black "Fridman, Daniel"]
[Result "1/2-1/2"]
[ECO "A13"]
[WhiteElo "2476"]
[BlackElo "2601"]
[Annotator "ChessBase"]
[PlyCount "99"]
[EventDate "2021.03.27"]
[EventType "team-tourn"]
[EventCountry "NET"]
[SourceTitle "playchess.com"]
[Source "ChessBase"]
[SourceQuality "1"]
[TimeControl "900+5"]

1. Nf3 {[%emt 0:00:00]} d5 {[%emt 0:00:06]} 2. c4 {[%emt 0:00:04]} e6 {[%emt 0:00:05]} 3. g3 {[%emt 0:00:08]} Nf6 {[%emt 0:00:02]} 4. b3 {[%emt 0:00:16]} d4 {[%emt 0:00:18]} 5. Bg2 {[%emt 0:00:03]} c5 {[%emt 0:00:02]} 6. e3 {[%emt 0:00:02]} Nc6 {[%emt 0:00:02]} 7. exd4 {[%emt 0:00:01]} cxd4 {[%emt 0:00:02]} 8. O-O {[%emt 0:00:01]} Bd6 {[%emt 0:00:14]} 9. d3 {[%emt 0:00:28]} O-O {[%emt 0:00:05]} 10. Bg5 {[%emt 0:01:19]} h6 {[%emt 0:00:04]} 11. Bxf6 {[%emt 0:00:03]} Qxf6 {[%emt 0:00:00]} 12. a3 {[%emt 0:00:25]} a5 {[%emt 0:00:31]} 13. Nbd2 {[%emt 0:00:11]} Qe7 {[%emt 0:00:38]} 14. Qc1 {[%emt 0:00:22]} f5 {[%emt 0:02:20]} 15. Re1 {[%emt 0:00:12]} e5 {[%emt 0:01:03]} 16. c5 {[%emt 0:02:00]} Bc7 {[%emt 0:01:59]} 17. Rb1 {[%emt 0:00:34]} Qf6 {[%emt 0:01:20]} 18. b4 {[%emt 0:00:55]} axb4 {[%emt 0:00:03]} 19. axb4 {[%emt 0:00:00]} Be6 {[%emt 0:00:01]} 20. b5 {[%emt 0:01:02]} Ne7 {[%emt 0:00:29]} 21. Nc4 {[%emt 0:00:59]} e4 {[%emt 0:01:09]} 22. dxe4 {[%emt 0:01:04]} fxe4 {[%emt 0:00:03]} 23. Rxe4 {[%emt 0:00:02]} Bd5 {[%emt 0:01:32]} 24. Qe1 {[%emt 0:01:35]} Nf5 {[%emt 0:01:01]} 25. Nfd2 {[%emt 0:00:38]} Ra2 {[%emt 0:01:01]} 26. Re8 {[%emt 0:01:23]} Bxg2 {[%emt 0:00:09]} 27. Rxf8+ {[%emt 0:00:29]} Qxf8 {[%emt 0:00:25]} 28. Qe6+ {[%emt 0:00:23]} Kh7 {[%emt 0:00:14]} 29. Kxg2 {[%emt 0:00:11]} Qxc5 {[%emt 0:00:59]} 30. Ne4 {[%emt 0:01:00]} Qxc4 {[%emt 0:01:05]} 31. Qxf5+ {[%emt 0:00:03]} Kh8 {[%emt 0:00:02]} 32. b6 {[%emt 0:00:28]} Bd8 {[%emt 0:00:03]} 33. Qd7 {[%emt 0:00:31]} Bg5 {[%emt 0:00:10]} 34. Qxb7 {[%emt 0:00:20]} Be3 {[%emt 0:00:07]} 35. Qb8+ {[%emt 0:00:09]} Kh7 {[%emt 0:00:02]} 36. Qe5 {[%emt 0:00:08]} Qf7 {[%emt 0:00:17]} 37. Rf1 {[%emt 0:00:20]} d3 {[%emt 0:00:05]} 38. Kg1 {[%emt 0:00:08]} Bxb6 {[%emt 0:00:05]} 39. Qd6 {[%emt 0:00:09]} Qb3 {[%emt 0:00:11]} 40. Qd7 {[%emt 0:00:07]} Ra7 {[%emt 0:00:09]} 41. Qf5+ {[%emt 0:00:02]} Kh8 {[%emt 0:00:02]} 42. Qc8+ {[%emt 0:00:02]} Kh7 {[%emt 0:00:02]} 43. Qf5+ {[%emt 0:00:01]} Kh8 {[%emt 0:00:02]} 44. Rc1 {[%emt 0:00:10]} Ra8 {[%emt 0:00:07]} 45. Rc8+ {[%emt 0:00:05]} Rxc8 {[%emt 0:00:03]} 46. Qxc8+ {[%emt 0:00:00]} Kh7 {[%emt 0:00:02]} 47. Qf5+ {[%emt 0:00:01]} Kh8 {[%emt 0:00:03]} 48. Qc8+ {[%emt 0:00:14]} Kh7 {[%emt 0:00:02]} 49. Qf5+ {[%emt 0:00:05]} Kh8 {[%emt 0:00:02]} 50. Qc8+ {[%emt 0:00:02]} 1/2-1/2

[Event "European Online Club-ch-F 2021"]
[Site "Online"]
[Date "2021.03.27"]
[Round "5.1"]
[White "Agrest, Evgenij"]
[Black "Pulkkinen, Kari"]
[Result "1-0"]
[ECO "D00"]
[WhiteElo "2568"]
[BlackElo "2256"]
[Annotator "ChessBase"]
[PlyCount "51"]
[EventDate "2021.03.27"]
[EventType "team-tourn"]
[EventCountry "NET"]
[SourceTitle "playchess.com"]
[Source "ChessBase"]
[SourceQuality "1"]
[TimeControl "900+5"]

1. d4 {[%emt 0:00:00]} Nf6 {[%emt 0:00:04]} 2. Nc3 {[%emt 0:00:03]} d5 {[%emt 0:00:03]} 3. Bf4 {[%emt 0:00:04]} c6 {[%emt 0:00:04]} 4. e3 {[%emt 0:00:09]} g6 {[%emt 0:00:09]} 5. h4 {[%emt 0:00:06]} h5 {[%emt 0:00:04]} 6. Be2 {[%emt 0:00:06]} Bg7 {[%emt 0:00:03]} 7. Nf3 {[%emt 0:00:03]} Bg4 {[%emt 0:00:05]} 8. Ne5 {[%emt 0:00:07]} Bxe2 {[%emt 0:00:03]} 9. Qxe2 {[%emt 0:00:04]} Nfd7 {[%emt 0:00:02]} 10. Nf3 {[%emt 0:00:42]} Nf6 {[%emt 0:00:20]} 11. O-O-O {[%emt 0:00:45]} Nbd7 {[%emt 0:00:07]} 12. Ne5 {[%emt 0:00:42]} e6 {[%emt 0:00:27]} 13. f3 {[%emt 0:00:12]} Nxe5 {[%emt 0:00:12]} 14. Bxe5 {[%emt 0:00:06]} Qa5 {[%emt 0:00:41]} 15. Kb1 {[%emt 0:00:21]} O-O-O {[%emt 0:00:26]} 16. e4 {[%emt 0:01:15]} Ne8 {[%emt 0:00:47]} 17. Qf2 {[%emt 0:02:04]} Rg8 {[%emt 0:02:40]} 18. g4 {[%emt 0:00:26]} Rh8 {[%emt 0:00:21]} 19. Rhe1 {[%emt 0:01:32]} Nf6 {[%emt 0:00:48]} 20. Qg3 {[%emt 0:01:57]} Ne8 {[%emt 0:00:42]} 21. a3 {[%emt 0:00:54]} Bxe5 {[%emt 0:00:36]} 22. dxe5 {[%emt 0:00:18]} Qc7 {[%emt 0:00:43]} 23. Ne2 {[%emt 0:00:40]} dxe4 {[%emt 0:00:15]} 24. fxe4 {[%emt 0:00:07]} Rxd1+ {[%emt 0:00:11]} 25. Rxd1 {[%emt 0:00:04]} Nf6 {[%emt 0:00:02]} 26. exf6 {[%emt 0:00:05]} 1-0

[Event "European Online Club-ch-F 2021"]
[Site "Online"]
[Date "2021.03.27"]
[Round "5.2"]
[White "Graeffe, Petri"]
[Black "Zhigalko, Andrey"]
[Result "0-1"]
[ECO "A35"]
[WhiteElo "2043"]
[BlackElo "2517"]
[Annotator "ChessBase"]
[PlyCount "84"]
[EventDate "2021.03.27"]
[EventType "team-tourn"]
[EventCountry "NET"]
[SourceTitle "playchess.com"]
[Source "ChessBase"]
[SourceQuality "1"]
[TimeControl "900+5"]

1. Nf3 {[%emt 0:00:00]} c5 {[%emt 0:00:07]} 2. e3 {[%emt 0:00:11]} g6 {[%emt 0:00:20]} 3. c4 {[%emt 0:00:04]} Bg7 {[%emt 0:00:02]} 4. d4 {[%emt 0:00:03]} Nf6 {[%emt 0:00:08]} 5. Nc3 {[%emt 0:00:02]} O-O {[%emt 0:00:06]} 6. Be2 {[%emt 0:00:08]} cxd4 {[%emt 0:00:20]} 7. exd4 {[%emt 0:00:02]} d5 {[%emt 0:00:03]} 8. O-O {[%emt 0:00:02]} Nc6 {[%emt 0:00:03]} 9. cxd5 {[%emt 0:00:36]} Nxd5 {[%emt 0:00:00]} 10. Bc4 {[%emt 0:00:02]} Nxc3 {[%emt 0:01:12]} 11. bxc3 {[%emt 0:00:03]} Na5 {[%emt 0:01:07]} 12. Bd3 {[%emt 0:00:54]} Be6 {[%emt 0:00:18]} 13. Qe2 {[%emt 0:00:21]} Rc8 {[%emt 0:00:07]} 14. Bd2 {[%emt 0:00:15]} Bc4 {[%emt 0:00:26]} 15. Rfe1 {[%emt 0:00:32]} e6 {[%emt 0:00:37]} 16. Bf4 {[%emt 0:03:02]} Bxd3 {[%emt 0:01:47]} 17. Qxd3 {[%emt 0:00:03]} Nc4 {[%emt 0:00:08]} 18. Rab1 {[%emt 0:01:33]} Qd5 {[%emt 0:00:35]} 19. a4 {[%emt 0:00:48]} Rfd8 {[%emt 0:00:40]} 20. Rb5 {[%emt 0:00:51]} Qc6 {[%emt 0:00:06]} 21. Rb4 {[%emt 0:02:35]} Nb6 {[%emt 0:01:57]} 22. a5 {[%emt 0:00:18]} Nd5 {[%emt 0:00:06]} 23. Be5 {[%emt 0:00:20]} f6 {[%emt 0:01:13]} 24. Bg3 {[%emt 0:00:43]} Nxb4 {[%emt 0:00:07]} 25. cxb4 {[%emt 0:00:01]} Qd5 {[%emt 0:01:14]} 26. Qe3 {[%emt 0:00:22]} Rc6 {[%emt 0:00:06]} 27. h4 {[%emt 0:00:05]} Rdc8 {[%emt 0:00:30]} 28. Kh2 {[%emt 0:00:13]} h6 {[%emt 0:01:08]} 29. Qe2 {[%emt 0:00:04]} a6 {[%emt 0:00:14]} 30. Qd3 {[%emt 0:00:09]} Kf7 {[%emt 0:00:09]} 31. Qe3 {[%emt 0:00:07]} g5 {[%emt 0:00:09]} 32. Nd2 {[%emt 0:00:43]} Rc3 {[%emt 0:00:32]} 33. Qe4 {[%emt 0:00:03]} f5 {[%emt 0:00:27]} 34. Qxd5 {[%emt 0:00:13]} exd5 {[%emt 0:00:00]} 35. Nf3 {[%emt 0:00:02]} f4 {[%emt 0:00:06]} 36. hxg5 {[%emt 0:00:06]} fxg3+ {[%emt 0:00:03]} 37. fxg3 {[%emt 0:00:05]} Rxf3 {[%emt 0:00:20]} 38. gxf3 {[%emt 0:00:03]} hxg5 {[%emt 0:00:04]} 39. Kh3 {[%emt 0:00:02]} Rc4 {[%emt 0:00:06]} 40. Kg4 {[%emt 0:00:03]} Kf6 {[%emt 0:00:25]} 41. b5 {[%emt 0:00:20]} axb5 {[%emt 0:00:05]} 42. Rb1 {[%emt 0:00:02]} Rxd4+ {[%emt 0:00:04]} 0-1

[Event "European Online Club-ch-F 2021"]
[Site "Online"]
[Date "2021.03.27"]
[Round "5.3"]
[White "Kazakouski, Valery"]
[Black "Puittinen, Mika"]
[Result "1-0"]
[ECO "A96"]
[WhiteElo "2476"]
[BlackElo "2007"]
[Annotator "ChessBase"]
[PlyCount "63"]
[EventDate "2021.03.27"]
[EventType "team-tourn"]
[EventCountry "NET"]
[SourceTitle "playchess.com"]
[Source "ChessBase"]
[SourceQuality "1"]
[TimeControl "900+5"]

1. Nf3 {[%emt 0:00:00]} e6 {[%emt 0:00:06]} 2. c4 {[%emt 0:00:03]} f5 {[%emt 0:00:04]} 3. g3 {[%emt 0:00:02]} Nf6 {[%emt 0:00:03]} 4. Bg2 {[%emt 0:00:02]} Be7 {[%emt 0:00:03]} 5. O-O {[%emt 0:00:02]} O-O {[%emt 0:00:02]} 6. d4 {[%emt 0:00:17]} d6 {[%emt 0:00:06]} 7. Nc3 {[%emt 0:00:03]} Ne4 {[%emt 0:00:03]} 8. Qd3 {[%emt 0:01:03]} Nxc3 {[%emt 0:00:11]} 9. bxc3 {[%emt 0:00:01]} Nc6 {[%emt 0:00:43]} 10. e4 {[%emt 0:00:13]} e5 {[%emt 0:00:13]} 11. dxe5 {[%emt 0:00:32]} dxe5 {[%emt 0:01:14]} 12. Qd5+ {[%emt 0:00:03]} Kh8 {[%emt 0:00:02]} 13. Re1 {[%emt 0:01:10]} Bf6 {[%emt 0:00:53]} 14. Ba3 {[%emt 0:01:12]} Re8 {[%emt 0:00:08]} 15. Rad1 {[%emt 0:00:05]} Be6 {[%emt 0:01:24]} 16. Qb5 {[%emt 0:00:04]} Qc8 {[%emt 0:00:13]} 17. exf5 {[%emt 0:00:07]} Bxf5 {[%emt 0:00:14]} 18. Nd2 {[%emt 0:00:10]} a6 {[%emt 0:01:21]} 19. Qa4 {[%emt 0:01:24]} b5 {[%emt 0:03:20]} 20. cxb5 {[%emt 0:01:48]} axb5 {[%emt 0:00:03]} 21. Qxb5 {[%emt 0:00:02]} Rxa3 {[%emt 0:00:04]} 22. Bxc6 {[%emt 0:00:30]} Rd8 {[%emt 0:00:04]} 23. Nc4 {[%emt 0:01:37]} Rxa2 {[%emt 0:00:22]} 24. Rxd8+ {[%emt 0:00:27]} Qxd8 {[%emt 0:00:12]} 25. Nxe5 {[%emt 0:00:10]} Be6 {[%emt 0:02:21]} 26. Nd7 {[%emt 0:02:25]} Bg8 {[%emt 0:01:59]} 27. Bd5 {[%emt 0:00:52]} Bxc3 {[%emt 0:01:09]} 28. Bxg8 {[%emt 0:01:08]} Ra5 {[%emt 0:00:09]} 29. Qd3 {[%emt 0:00:18]} Rh5 {[%emt 0:00:28]} 30. Qxc3 {[%emt 0:00:14]} Kxg8 {[%emt 0:00:04]} 31. Qc4+ {[%emt 0:00:11]} Kh8 {[%emt 0:00:03]} 32. Qf7 {[%emt 0:00:02]} 1-0